Cogmind - Beta 14 @@@ ROGUE MODE // 2024.08.19 @ 23:46:46 Player: CONM Result: Destroyed by as-56041 with Assembled Blade Performance ------------- Evolutions (0) 0 Regions Visited (2) 400 Robots Destroyed (16) 80 Value Destroyed (401) 401 Prototype IDs (0) 0 Alien Tech Used (0) 0 Bonus (-139) -139 TOTAL SCORE: 742 Bonus ------- Friendly Fire -139 Cogmind --------- Core Integrity 0/250 Matter 220/300 Energy 115/125 System Corruption 0% Temperature Cool (27) Movement Core (300) Ox5 Location -10/Mines Parts ------- > --- POWER (1) -------- Light Ion Engine > --- PROPULSION (2) --- (None) > --- UTILITY (2) ------ Small Storage Unit Light Armor Plating > --- WEAPON (2) ------- Medium Laser Grenade Launcher > --- INVENTORY (8) ---- Light Ion Engine Hover Unit Improved Heat Sink Medium Laser Medium Laser Medium Laser Datajack Peak State ------------ > --- POWER ------------ Light Ion Engine > --- PROPULSION ------- Light Treads Light Treads > --- UTILITY ---------- Improved Heat Sink Small Storage Unit > --- WEAPON ----------- Medium Laser Medium Laser > --- INVENTORY -------- Light Ion Engine Hover Unit Light Armor Plating Medium Laser Medium Laser Grenade Launcher Datajack [Rating: 9] Favorites ----------- Power Ion Engine Engine Ion Engine Propulsion Light Treads Treads Light Treads Utility Small Storage Unit Device Seismic Detector Storage Small Storage Unit Protection Light Armor Plating Weapon Medium Laser Energy Gun Medium Laser Launcher Grenade Launcher Build | -11 -10 -10 ------- Run | Yrd Mat Min Slots Evolved . | . . . Power . | . . . Propulsion . | . . . Utility . | . . . Weapon . | . . . Parts Attached 11 | 7 1 3 Power 2 | 1 . 1 Engine 2 | 1 . 1 Core . | . . . Reactor . | . . . Propulsion 2 | 2 . . Treads 2 | 2 . . Leg . | . . . Wheel . | . . . Hover . | . . . Flight . | . . . Utility 4 | 2 1 1 Device 2 | 1 1 . Storage 1 | 1 . . Processor . | . . . Hackware . | . . . Protection 1 | . . 1 Artifact . | . . . Weapon 3 | 2 . 1 Energy Gun 2 | 2 . . Energy Cannon . | . . . Ballistic Gun . | . . . Ballistic Cannon . | . . . Launcher 1 | . . 1 Special Weapon . | . . . Impact Weapon . | . . . Slashing Weapon . | . . . Piercing Weapon . | . . . Special Melee Weapon . | . . . Unidentified Prototypes . | . . . Parts Lost 3 | . 1 2 Power 1 | . 1 . Propulsion 2 | . . 2 Utility . | . . . Weapon . | . . . Highest Loss Streak 2 | . 1 2 To Critical Strikes . | . . . Average Slot Usage (%) 93 | . 98 85 Engine 8 | . 12 2 Treads 27 | . 28 26 Device 13 | . 14 13 Storage 14 | . 14 14 Energy Gun 27 | . 28 26 Peak Build Rating 9 | 7 8 9 Average Rating 7 | 5 7 8 On Entrance 5 | . 7 8 Naked Turns . | . . . Heaviest Build 15 | 15 15 14 Greatest Support 40 | 40 40 40 Greatest Overweight (x) . | . . . Average Overweight (x) . | . . . Largest Inventory Capacity 8 | 8 8 8 Average Capacity 7 | 7 8 8 Most Carried 8 | 1 8 8 Average Carried 5 | . 6 7 Final Capacity 8 | 8 8 8 Final Carried 8 | 1 8 7 Class Distribution -------------------- 100% | Mutant Dominant Class ---------------- Mutant | -10/Materials Mutant | -10/Mines Resources | -11 -10 -10 ----------- Run | Yrd Mat Min Matter Collected 280 | 218 62 . Remotely . | . . . Salvage Created 505 | 22 305 178 Parts 27 | 1 15 11 Haulers Intercepted . | . . . Recyclers Shooed 1 | . 1 . Parts Field Recycled . | . . . Retrieved Matter . | . . . Parts Self-Destructed . | . . . Prevented . | . . . Kills | -11 -10 -10 ------- Run | Yrd Mat Min Combat Hostiles Destroyed 23 | . 9 14 Guns 10 | . 8 2 AOE 12 | . . 12 Classes Destroyed 8 | 1 3 4 Builder 1 | . . 1 Tunneler 1 | 1 . . Operator 1 | . 1 . Swarmer 3 | . 3 . Grunt 8 | . 6 2 Sentry 1 | . . 1 Assembled 11 | . . 11 Guerrilla 1 | . . 1 Best Kill Streak 14 | 1 3 14 Combat Bots Only 13 | . 3 13 Max Kills in Single Turn 5 | 1 1 5 Gunslinging . | . . . Exploded 4 | . . 4 Melee . | . . . Uniques/NPCs Destroyed . | . . . Combat | -11 -10 -10 -------- Run | Yrd Mat Min Hostile Shots Fired 92 | . 55 37 Missed 29 | . 15 14 Damage Taken 874 | . 416 458 Core 263 | . 54 209 Absorbed by Shields . | . . . Core Remaining (%) 100 | 100 . . Volleys Fired 53 | 8 33 12 Largest 2 | 2 2 2 Hottest 100 | 100 100 100 Shots Fired 106 | 16 66 24 Gun 100 | 16 66 18 Cannon . | . . . Launcher 6 | . . 6 Special . | . . . Kinetic . | . . . Thermal 100 | 16 66 18 Explosive 6 | . . 6 Electromagnetic . | . . . Robot Hit Streak 9 | 7 9 8 Robot Miss Streak 5 | 1 5 1 Penetration Max . | . . . Secondary Targets 1 | . 1 . Max Gunslinging Chain 1 | . 1 . Shots Hit Robots 68 | 12 41 15 Core Hits 54 | 1 18 35 Critical Kills . | . . . Critical Parts Destroyed . | . . . Critical Strikes 6 | 1 3 2 Burn 6 | 1 3 2 Melee Attacks . | . . . Impact . | . . . Slashing . | . . . Piercing . | . . . Sneak Attacks . | . . . Combat Hostiles . | . . . Follow-up Attacks . | . . . Damage Inflicted 1557 | 151 511 895 Guns 840 | 151 511 178 Cannons . | . . . Explosions 717 | . . 717 Melee . | . . . Ramming . | . . . Kinetic . | . . . Thermal 840 | 151 511 178 Explosive 717 | . . 717 Electromagnetic . | . . . Impact . | . . . Slashing . | . . . Piercing . | . . . Highest Corruption . | . . . Average Corruption . | . . . Corruption Purged . | . . . Corruption Blocked . | . . . Overload Shots . | . . . Overflow Damage 14 | . . 14 Projectiles . | . . . Explosions 14 | . . 14 Melee . | . . . Knockbacks . | . . . Impact . | . . . Kinetic . | . . . Secondary . | . . . Self-Inflicted Damage 78 | . . 78 Shots 2 | . . 2 Rammed . | . . . Targets Rammed . | . . . Kicked . | . . . Crushed . | . . . Highest Temperature 405 | 156 405 27 Average Temperature 143 | 59 168 14 Received Heat Transfer 209 | . 180 29 Effects 8 | . 8 . Shutdowns 1 | . 1 . Energy Bleed 3 | . 3 . Interference 3 | . 3 . Damage (minor) 1 | . 1 . Siege Activations . | . . . Robots Corrupted . | . . . Combat Hostiles . | . . . Parts Fried . | . . . Impact Corruptions . | . . . Robots Melted 1 | . 1 . Combat Hostiles 1 | . 1 . Parts Melted 10 | . 7 3 Heat Transferred 2923 | 518 1739 666 Parts Sabotaged . | . . . Parts Stolen . | . . . Parts Stripped . | . . . Power Chain Reactions . | . . . Alert | -11 -10 -10 ------- Run | Yrd Mat Min Peak Influence 242 | 5 242 154 Initial 41 | . 3 41 Average 82 | 2 108 78 Maximum Alert Level 1 | . 1 . Low Security (%) 92 | 100 85 100 Level 1 7 | . 14 . Level 2 . | . . . Level 3 . | . . . Level 4 . | . . . Level 5 . | . . . High Security . | . . . Max Security . | . . . Squads Dispatched 1 | . 1 . Investigation 1 | . 1 . Extermination . | . . . Reinforcement . | . . . Assault . | . . . Garrison . | . . . Intercept . | . . . Searches Triggered . | . . . Construction Impeded . | . . . Haulers Reinforced . | . . . Active Scanning Responses . | . . . Cargo Convoy Interrupts . | . . . Stealth | -11 -10 -10 --------- Run | Yrd Mat Min Distress Signals 4 | . 4 . Communications Jammed . | . . . Distress Signals . | . . . Times Spotted 33 | . 17 16 Peak Tracking Total 10 | . 5 10 Tactical Retreats 2 | . 2 . Traps | -11 -10 -10 ------- Run | Yrd Mat Min Traps Triggered . | . . . Indirectly . | . . . Trap Hack Attempts . | . . . Triggered . | . . . Disarmed . | . . . Reprogrammed . | . . . Reused . | . . . Traps Extracted . | . . . Installed . | . . . Triggered . | . . . Machines | -11 -10 -10 ---------- Run | Yrd Mat Min Machines Disabled . | . . . Max in Single Turn . | . . . Machines Repaired . | . . . Machines Dismantled . | . . . Machines Sabotaged . | . . . Overloaded Fab Kills . | . . . Hacking | -11 -10 -10 --------- Run | Yrd Mat Min Machines Accessed 3 | . 2 1 Terminals 3 | . 2 1 Fabricators . | . . . Repair Stations . | . . . Recycling Units . | . . . Scanalyzers . | . . . Garrison Access . | . . . Total Hacks 7 | . 5 2 Successful 4 | . 4 . Failed 3 | . 1 2 Catastrophic 1 | . 1 . Database Lockouts . | . . . Manual 2 | . 2 . Terminals 7 | . 5 2 Fabricators . | . . . Repair Stations . | . . . Recycling Units . | . . . Scanalyzers . | . . . Garrison Access . | . . . Terminal Hacks 3 | . 3 . Record 1 | . 1 . Robot Analysis 1 | . 1 . Transport Status 1 | . 1 . Fabricator Hacks . | . . . Repair Station Hacks . | . . . Recycling Unit Hacks . | . . . Scanalyzer . | . . . Garrison Access Hacks . | . . . Unauthorized Hacks 1 | . 1 . Terminals 1 | . 1 . Operators 1 | . 1 . Fabricators . | . . . Repair Stations . | . . . Recycling Units . | . . . Scanalyzers . | . . . Garrison Access . | . . . Data Cores Recovered 1 | . 1 . Used 1 | . 1 . Hacking Detections 2 | . 1 1 Full Trace Events 1 | . 1 . Feedback Events . | . . . Feedback Blocked . | . . . Robot Schematics Acquired . | . . . Robots Built . | . . . Authchips . | . . . Time . | . . . Total Robot Build Rating . | . . . Part Schematics Acquired . | . . . Parts Built . | . . . Authchips . | . . . Time . | . . . Total Part Build Rating . | . . . Parts Repaired . | . . . Time . | . . . Parts Recycled . | . . . Recycled Matter . | . . . Retrieved Matter . | . . . Retrieved Components . | . . . Parts Scanalyzed . | . . . Part Schematics Acquired . | . . . Parts Damaged . | . . . Bothacking | -11 -10 -10 ------------ Run | Yrd Mat Min Used RIF Installer . | . . . Robots Hacked . | . . . Non-combat . | . . . Combat . | . . . Robot Hacks Applied . | . . . Relay Couplers Released . | . . . Fabnet Peak Effective % . | . . . Robots Rewired . | . . . Allies Hacked . | . . . Hacks Repelled . | . . . Allies | -11 -10 -10 -------- Run | Yrd Mat Min Total Allies . | . . . Largest Group . | . . . Highest-Rated Group . | . . . Highest-Rated Ally . | . . . Total Orders . | . . . Ally Attacks . | . . . Total Damage . | . . . Kills . | . . . Allies Corrupted . | . . . Allies Melted . | . . . Intel | -11 -10 -10 ------- Run | Yrd Mat Min Robot Analysis Total 1 | . 1 . Derelict Logs Recovered . | . . . Drone Launches . | . . . Drone Recoveries . | . . . Exploration | -11 -10 -10 ------------- Run | Yrd Mat Min Turns Passed 862 | 130 449 283 Spaces Moved 401 | 63 191 147 Core 5 | 5 . . Treads 396 | 58 191 147 Legs . | . . . Wheels . | . . . Hover . | . . . Flight . | . . . Fastest Speed 50 | 50 160 160 Average Speed 158 | 151 160 160 Slowest Speed 160 | 160 160 160 Overloaded Moves . | . . . Propulsion Burnouts . | . . . Robots Hopped . | . . . Cave-ins Triggered . | . . . Exploration Rate (%) 19 | 4 26 29 Regions Visited 2 Branch Regions 1 Pre-discovered Areas 1 | . . 1 Known Exits Taken . | . . . Unknown Exits Taken 2 | 1 1 . Scrap Searched . | . . . Spaces Dug . | . . . Terrain Destroyed 39 | . . 39 Melee . | . . . Projectile . | . . . AOE 39 | . . 39 Terrain Rammed . | . . . Walls Destroyed . | . . . Machines Disabled . | . . . Actions | -11 -10 -10 --------- Run | Yrd Mat Min Total 519 | 78 268 173 Wait 44 | . 37 7 Move 399 | 62 190 147 Hop . | . . . Pick Up 10 | 1 7 2 Fast Attach 7 | 7 . . Attach 1 | . . 1 Detach . | . . . Swap 3 | . 1 2 Drop 2 | . . 2 Fire 53 | 8 33 12 Melee . | . . . Ram . | . . . Kick . | . . . Crush . | . . . Escape Stasis . | . . . Rewire . | . . . Trap . | . . . Miscellaneous . | . . . Route ------- -11/Scrapyard -10/Materials (discovered 2 exits: [*Mat] / *Min) -10/Mines History --------- Turn | Location | Event 16 | -11/Scrapyard | Discovered new exit (range 15) 131 | -11/Scrapyard | Entered Materials 303 | -10/Materials | Build established: Mutant 363 | -10/Materials | Discovered new exit (range 15) 515 | -10/Materials | Discovered new exit (range 12) 580 | -10/Materials | Entered Mines 619 | -10/Mines | Joined a pair of Derelicts in attacking an 0b10 outpost 744 | -10/Mines | Learned location of Storage (-8) 818 | -10/Mines | Assembled infested the area 823 | -10/Mines | Assisted by a Guerilla fighting off Assembled 843 | -10/Mines | Core integrity fell below 50% 859 | -10/Mines | Core integrity fell below 20% 863 | -10/Mines | Destroyed by as-56041 with Assembled Blade Last Messages --------------- 00839_ Destroyed Lgt. Treads. 00839_ Flexi-carbon Leg melted. 00839_ 64-AAK(h) destroyed. 00839_ as-30814 destroyed. 00839_ U-05 Engineer destroyed. 00839_ G-47 Trooper destroyed. 00842_ Destroyed Asb. Hover Unit. 00842_ as-04182 destroyed. 00842_ as-61886 destroyed. 00853_ Lgt. Treads destroyed. 00855_ Destroyed Asb. Hover Unit. 00855_ as-14219 destroyed. 00856_ Core Extractor disabled. 00860_ as-96332 suffers critical hit (Burn). 00860_ as-17581 destroyed. 00860_ as-52067 destroyed. 00863_ as-85666 destroyed. 00863_ as-98644 destroyed. 00863_ as-96332 destroyed. 00863_ as-36874 destroyed. Map ----- +----------------------------------------------------+ | ?????????????????????????????????????????????? | | ?????????????????????????????????????????????? | | ?????????????????????????????????????????????? | | ?????????????????????????????????????????????? | | ?????????????????????????????????????????????? | | ?????????????????????????????????????????????? | | ?????????????????????????????????????????????? | | ????????????????????? ???????????????????????? | | ????????????????????# =??????????????????????? | | ?????????########???#=%??????????????????????? | | ?????????# #???# !??????????????????????? | | ?????????# """ #???# ??????????????????????? | | ????###### """ #?### ####??????????????????? | | ????# """ #?# #??????????????????? | | ????# #### #?# #??????????????????? | | ????# #??# #?# ##?????????????????? | | ????# #??## #####?# % #?????????????????? | | ????# #???# #?????? #?????????????????? | | ????# #???# #?????? ###???????????????? | | ???## ##??# #?????? [ ;#???????????????? | | ???# ##?# #??????# =%| #????????????????? | | ???# #?# #??????# ==! #????????????????? | | ??# #?# #??????# % #????????????????? | | ??# #?# #??????# ##????????????????? | | ??# #?# #??????# a #?????????????????? | | ??# ##?# #?????## @ ##?????????????????? | | ??## ##??# ####?## #??????????????????? | | ???####???# ### "" ##??????????????????? | | ??????????#### ## """ ##???????????????????? | | ?????????????# """ #????????????????????? | | ?????????????# ### #????????????????????? | | ?????????????# #?### #???????????????????? | | ?????????????# #???## #??????????????????? | | ?????????##### #????## #?????????????????? | | ?????????# #??????## ???????????????? | | ?????????# #????????# #### ?????????????? | | ?????????##### #?????????##??????????????????? | | ??????######?# #?????????????????????????????? | | ?????##"%*"### #?#####???????????????????????? | | ?????# !!% !## #? ????????????????????????? | | ?????#![*!![## #? ????????? ??????????????? | | ????###! ! ### #? #????? #???????????????? | | ????# ##//## # #? ### #????????????????? | | ????# # ## ??????????????????? | | ????# #?????????????????????????? | | ????# ### #?????????????????????????? | | ????# #?# ###?????????????????????????? | | ????# #?# #???????????????????????????? | | ????# #?# #???????????????????????????? | | ????##########?# #???????????????????????????? | +----------------------------------------------------+ Best States ------------- Heat Dissipation 39 Energy Generation 10 Energy Capacity 250 Matter Stores 300 Matter Capacity 300 Sight Range 16 Terrain Scan Density 10 Armor Coverage 150 Evasion (%) 40 Recoil Reduction 2 Item Schematics ----------------- None Robot Schematics ------------------ None Fabricated ------------ Nothing Alien Tech Used ----------------- None Achievements -------------- None Challenges ------------ None Game ------ Seed AccelerationIonUnit Manual? 0 Play Time 00:11:18 Cumulative 59.5 hours Start 2024.08.19 @ 23:04:24 End 2024.08.19 @ 23:46:46 Sessions 1 Manual Loads 0 Difficulty Rogue Special Mode None Game No. 83 Rogue 83 Adventurer 0 Explorer 0 Win Type - Total 0 Types 0/0/0/0/0/0/0/0/0 Lore% 24 Gallery% 33 Achievement% 37 Wizard Run 0 Options --------- Layout 0 ASCII 0 Keyboard 0 Movement Arrows Keybinds 0 Fullscreen 1 Font 20/Smallcaps Map View 66x50 Zoom Use 0% Tactical HUD 1 Map Filters NONE Filters NONE Steam 1 RUN: 4c752b79-987f-4090-a356-dc97c3aafe62